fUST/lending_fUST_20241107
["ID","MTS","AMOUNT","RATE_DAILY","PERIOD"]
[341517653,1730947477978,-500.0,0.00021917,2]
[341517654,1730947478001,-503.36867179,0.00021917,2]
[341517655,1730947478025,-504.19320914,0.00021917,2]
[341517656,1730947478048,-502.37194287,0.00021917,2]
[341517657,1730947478073,-500.0,0.00021917,2]
[341517658,1730947478096,-500.0,0.00021917,2]
[341517659,1730947478119,-500.0,0.00021917,2]
[341517660,1730947478142,-500.0,0.00021917,2]
[341517661,1730947478166,-500.0,0.00021917,2]
[341517662,1730947478189,-500.28381322,0.00021917,2]
[341517663,1730947478215,-500.0,0.00021917,2]
[341517664,1730947478239,-502.61639786,0.00021917,2]
[341517665,1730947478264,-500.0,0.00021917,2]
[341517666,1730947478289,-500.0,0.00021917,2]
[341517667,1730947478313,-500.0,0.00021917,2]
[341517668,1730947478340,-536.22913478,0.00021917,2]
[341517669,1730947478363,-307.07116169,0.00021917,2]
[341517670,1730947478387,-500.0,0.00021917,2]
[341517671,1730947478411,-505.19498389,0.00021917,2]
[341517672,1730947478435,-500.0,0.00021917,2]
[341517673,1730947478459,-560.95464775,0.00021917,2]
[341517674,1730947478482,-500.0,0.00021917,2]
[341517675,1730947478505,-500.0,0.00021917,2]
[341517676,1730947478529,-500.0,0.00021917,2]
[341517677,1730947478552,-500.0,0.00021917,2]
[341517678,1730947478578,-563.85712329,0.00021917,2]
[341517679,1730947478601,-500.0,0.00021917,2]
[341517680,1730947478624,-500.24741366,0.00021917,2]
[341517681,1730947478648,-505.67850938,0.00021917,2]
[341517682,1730947478672,-527.42380982,0.00021917,2]
[341517683,1730947478695,-500.0,0.00021917,2]
[341517684,1730947478718,-500.0,0.00021917,2]
[341517685,1730947478740,-558.98764372,0.00021917,2]
[341517686,1730947478762,-500.0,0.00021917,2]
[341517687,1730947478785,-500.0,0.00021917,2]
[341517688,1730947478808,-500.0,0.00021917,2]
[341517689,1730947478835,-500.0,0.00021917,2]
[341517690,1730947478857,-502.83991967,0.00021917,2]
[341517691,1730947478879,-500.0,0.00021917,2]
[341517692,1730947478902,-500.0,0.00021917,2]
[341517693,1730947478924,-500.0,0.00021917,2]
[341517694,1730947478948,-500.0,0.00021917,2]
[341517695,1730947478971,-500.0,0.00021917,2]
[341517696,1730947478993,-502.76970645,0.00021917,2]
[341517697,1730947479016,-552.30745234,0.00021917,2]
[341517698,1730947479038,-513.60465763,0.00021917,2]
[341517699,1730947479061,-508.96711473,0.00021917,2]
[341517700,1730947479085,-500.0,0.00021917,2]
[341517701,1730947479205,-501.43597493,0.00021917,2]
[341517702,1730947479229,-582.28702467,0.00021917,2]
[341517703,1730947479253,-500.0,0.00021917,2]
[341517704,1730947479277,-460.32091467,0.00021917,2]
[341517705,1730947479300,-506.40661331,0.00021917,2]
[341517706,1730947479324,-500.0,0.00021917,2]
[341517707,1730947479348,-601.50978115,0.00021917,2]
[341517708,1730947479372,-500.0,0.00021917,2]
[341517709,1730947479398,-500.0,0.00021917,2]
[341517710,1730947479422,-500.0,0.00021917,2]
[341517711,1730947479446,-513.49959736,0.00021917,2]
[341517712,1730947479472,-504.26487171,0.00021917,2]
[341517713,1730947479496,-505.8856023,0.00021917,2]
[341517714,1730947479521,-505.97993476,0.00021917,2]
[341517715,1730947479546,-509.11941962,0.00021917,2]
[341517716,1730947479573,-500.0,0.00021917,2]
[341517717,1730947479597,-501.57910054,0.00021917,2]
[341517718,1730947479621,-500.0,0.00021917,2]
[341517719,1730947479644,-501.5829973,0.00021917,2]
[341517720,1730947479668,-506.78023568,0.00021917,2]
[341517721,1730947479692,-500.0,0.00021917,2]
[341517722,1730947479717,-3260.84,0.00021917,2]
[341517723,1730947479742,-500.0,0.00021917,2]
[341517724,1730947479765,-503.11816361,0.00021917,2]
[341517725,1730947479788,-500.0,0.00021917,2]
[341517726,1730947479812,-500.0,0.00021917,2]
[341517727,1730947479839,-504.05396997,0.00021917,2]
[341517728,1730947479863,-500.0,0.00021917,2]
[341517729,1730947479887,-607.07052806,0.00021917,2]
[341517730,1730947479910,-154.36067001,0.00021917,2]
[341517731,1730947479935,-500.0,0.00021917,2]
[341517732,1730947479961,-517.68653547,0.00021917,2]
[341517733,1730947479985,-502.32466176,0.00021917,2]
[341517734,1730947480009,-500.0,0.00021917,2]
[341517735,1730947480033,-500.0,0.00021917,2]
[341517736,1730947480057,-500.0,0.00021917,2]
[341517737,1730947480084,-856.54,0.00021917,2]
[341517738,1730947480108,-502.96641847,0.00021917,2]
[341517739,1730947480132,-500.0,0.00021917,2]
[341517740,1730947480156,-155.86566885,0.00021917,2]
[341517741,1730947480180,-503.51871035,0.00021917,2]
[341517742,1730947480206,-500.0,0.00021917,2]
[341517743,1730947480230,-500.0,0.00021917,2]
[341517744,1730947480254,-500.0,0.00021917,2]
[341517745,1730947480277,-501.48413098,0.00021917,2]
[341517746,1730947480301,-500.0,0.00021917,2]
[341517747,1730947480328,-500.0,0.00021917,2]
[341517748,1730947480352,-237.4282914,0.00021917,2]
[341517749,1730947480376,-500.0,0.00021917,2]
[341517750,1730947480400,-546.97594525,0.00021917,2]
[341517751,1730947480424,-500.0,0.00021917,2]
[341517752,1730947480448,-500.0,0.00021917,2]
[341517753,1730947480472,-500.0,0.00021917,2]
[341517754,1730947480498,-500.0,0.00021917,2]
[341517755,1730947480523,-500.0,0.00021917,2]
[341517756,1730947480548,-500.0,0.00021917,2]
[341517757,1730947480574,-500.0,0.00021917,2]
[341517758,1730947480600,-500.0,0.00021917,2]
[341517759,1730947480626,-500.0,0.00021917,2]
[341517760,1730947480650,-511.0871772,0.00021917,2]
[341517761,1730947480675,-190.59226667,0.00021917,2]
[341517762,1730947480700,-502.70837367,0.00021917,2]
[341517763,1730947480725,-500.0,0.00021917,2]
[341517764,1730947480750,-500.0,0.00021917,2]
[341517765,1730947480775,-505.25719695,0.00021917,2]
[341517766,1730947480799,-500.0,0.00021917,2]
[341517767,1730947480824,-507.43900963,0.00021917,2]
[341517768,1730947480848,-500.0,0.00021917,2]
[341517769,1730947480872,-500.0,0.00021917,2]
[341517770,1730947480896,-500.0,0.00021917,2]
[341517771,1730947480921,-500.0,0.00021917,2]
[341517772,1730947480945,-500.0,0.00021917,2]
[341517773,1730947480969,-500.0,0.00021917,2]
[341517774,1730947480993,-500.0,0.00021917,2]
[341517775,1730947481017,-500.0,0.00021917,2]
[341517776,1730947481048,-500.0,0.00021917,2]
[341517777,1730947481072,-500.0,0.00021917,2]
[341517778,1730947481096,-501.46307861,0.00021917,2]
[341517779,1730947481119,-500.0,0.00021917,2]
[341517780,1730947481144,-409.00137872,0.00021917,2]
[341517781,1730947481168,-500.0,0.00021917,2]
[341517782,1730947481192,-500.0,0.00021917,2]
[341517783,1730947481218,-529.80386076,0.00021917,2]
[341517784,1730947481243,-503.28024373,0.00021917,2]
[341517785,1730947481268,-500.0,0.00021917,2]
[341517786,1730947481292,-155.63930262,0.00021917,2]
[341517787,1730947481317,-500.0,0.00021917,2]
[341517788,1730947481341,-155.68209919,0.00021917,2]
[341517789,1730947481368,-571.32258574,0.00021917,2]
[341517790,1730947481393,-266.85614744,0.00021917,2]
[341517791,1730947481419,-500.0,0.00021917,2]
[341517792,1730947481442,-500.0,0.00021917,2]
[341517793,1730947481466,-513.06808881,0.00021917,2]
[341517794,1730947481490,-500.0,0.00021917,2]
[341517795,1730947481514,-502.91395685,0.00021917,2]
[341517796,1730947481540,-500.0,0.00021917,2]
[341517797,1730947481564,-500.0,0.00021917,2]
[341517798,1730947481589,-504.40099318,0.00021917,2]
[341517799,1730947481613,-500.0,0.00021917,2]
[341517800,1730947481637,-500.0,0.00021917,2]
[341517801,1730947481661,-500.0,0.00021917,2]
[341517802,1730947481684,-500.0,0.00021917,2]
[341517803,1730947481804,-500.0,0.00021917,2]
[341517804,1730947481833,-1638.27,0.00021917,2]
[341517805,1730947481858,-500.0,0.00021917,2]
[341517806,1730947481883,-508.9499792,0.00021917,2]
[341517807,1730947481908,-500.0,0.00021917,2]
[341517808,1730947481932,-500.0,0.00021917,2]
[341517809,1730947481958,-500.0,0.00021917,2]
[341517810,1730947481983,-500.0,0.00021917,2]
[341517811,1730947482010,-502.12117023,0.00021917,2]
[341517812,1730947482035,-500.0,0.00021917,2]
[341517813,1730947482060,-715.07,0.00021917,2]
[341517814,1730947482084,-500.0,0.00021917,2]
[341517815,1730947482109,-500.0,0.00021917,2]
[341517816,1730947482134,-500.0,0.00021917,2]
[341517817,1730947482159,-500.0,0.00021917,2]
[341517818,1730947482185,-687.67,0.00021917,2]
[341517819,1730947482212,-500.0,0.00021917,2]
[341517820,1730947482236,-489.45840092,0.00021917,2]
[341517821,1730947482261,-500.0,0.00021917,2]
[341517822,1730947482287,-500.0,0.00021917,2]
[341517823,1730947482311,-500.0,0.00021917,2]
[341517824,1730947482336,-576.9839297,0.00021917,2]
[341517825,1730947482359,-500.0,0.00021917,2]
[341517826,1730947482384,-500.0,0.00021917,2]
[341517827,1730947482408,-500.0,0.00021917,2]
[341517828,1730947482433,-1402.37,0.00021917,2]
[341517829,1730947482457,-432.2684171,0.00021917,2]
[341517830,1730947504258,1017.76642348,0.00020798,2]
[341517831,1730947530031,-1169.27083333,0.00021481,2]
[341517832,1730947530055,-300.0,0.00021916,2]
[341517833,1730947530080,-300.0,0.00021916,2]
[341517834,1730947530106,-80.08642818,0.00021917,2]
[341517835,1730947530134,-523.86963658,0.00021917,2]
[341517836,1730947530160,-500.0,0.00021917,2]
[341517837,1730947530184,-500.0,0.00021917,2]
[341517838,1730947530208,-500.0,0.00021917,2]
[341517839,1730947530235,-505.28432256,0.00021917,2]
[341517840,1730947530260,-500.0,0.00021917,2]
[341517841,1730947530286,-532.24557625,0.00021917,2]
[341517842,1730947530311,-501.35166923,0.00021917,2]
[341517843,1730947530336,-501.11919254,0.00021917,2]
[341517844,1730947530364,-501.17006742,0.00021917,2]
[341517845,1730947530388,-525.10417283,0.00021917,2]
[341517846,1730947530414,-504.49862375,0.00021917,2]
[341517847,1730947530438,-500.0,0.00021917,2]
[341517848,1730947530462,-500.0,0.00021917,2]
[341517849,1730947530486,-500.0,0.00021917,2]
[341517850,1730947530512,-500.0,0.00021917,2]
[341517851,1730947530536,-500.0,0.00021917,2]
[341517852,1730947530563,-820.85,0.00021917,2]
[341517853,1730947530588,-500.0,0.00021917,2]
[341517854,1730947530614,-576.63,0.00021917,2]
[341517855,1730947530639,-500.0,0.00021917,2]
[341517856,1730947530663,-500.0,0.00021917,2]
[341517857,1730947530688,-500.0,0.00021917,2]
[341517858,1730947530713,-500.0,0.00021917,2]
[341517859,1730947530738,-500.0,0.00021917,2]
[341517860,1730947530762,-168.405798,0.00021918,2]
[341517861,1730947530790,-500.0,0.00021973,2]
[341517862,1730947530815,-159.816,0.0002214,30]
[341517863,1730947530839,-500.0,0.00022173,2]
[341517864,1730947530868,-500.0,0.00022173,2]
[341517865,1730947530891,-341.7992924,0.0002219,2]
[341517866,1730947530917,-645.48904732,0.00022191,2]
[341517867,1730947530942,-605.45468285,0.00022191,2]
[341517868,1730947530968,-500.0,0.00022191,2]
[341517869,1730947530993,-500.0,0.00022191,2]
[341517870,1730947531017,-512.04264899,0.00022191,2]
[341517871,1730947531041,-500.0,0.00022191,2]
[341517872,1730947531066,-500.0,0.00022191,2]
[341517873,1730947531090,-517.10739677,0.00022191,2]
[341517874,1730947531116,-500.0,0.00022191,2]
[341517875,1730947531141,-500.0,0.00022191,2]
[341517876,1730947531166,-500.0,0.00022191,2]
[341517877,1730947531189,-500.0,0.00022191,2]
[341517878,1730947531230,-215.7035169,0.00022191,2]
[341517879,1730947531258,-504.43966699,0.00022191,2]
[341517880,1730947531283,-505.95168559,0.00022191,2]
[341517881,1730947531310,-264.90742892,0.00022191,2]
[341517882,1730947531334,-500.0,0.00022191,2]
[341517883,1730947531361,-500.0,0.00022191,2]
[341517884,1730947531385,-500.0,0.00022191,2]
[341517885,1730947531410,-500.0,0.00022191,2]
[341517886,1730947531435,-500.0,0.00022191,2]
[341517887,1730947531462,-623.65,0.00022191,2]
[341517888,1730947531486,-501.51597082,0.00022191,2]
[341517889,1730947531636,-511.00508236,0.00022191,2]
[341517890,1730947531668,-500.0,0.00022191,2]
[341517891,1730947531693,-500.0,0.00022191,2]
[341517892,1730947531719,-500.0,0.00022191,2]
[341517893,1730947531744,-230.49556275,0.00022191,2]
[341517894,1730947531773,-500.0,0.00022191,2]
[341517895,1730947531798,-500.0,0.00022191,2]
[341517896,1730947531824,-500.0,0.00022191,2]
[341517897,1730947531848,-500.0,0.00022191,2]
[341517898,1730947531880,-500.0,0.00022191,2]
[341517899,1730947531905,-500.0,0.00022191,2]
[341517900,1730947531932,-500.0,0.00022191,2]
[341517901,1730947531958,-500.0,0.00022191,2]
[341517902,1730947531985,-500.0,0.00022191,2]
[341517903,1730947532011,-1638.27,0.00022191,2]
[341517904,1730947532038,-500.0,0.00022191,2]
[341517905,1730947532062,-500.0,0.00022191,2]
[341517906,1730947532087,-715.07,0.00022191,2]
[341517907,1730947532113,-500.0,0.00022191,2]
[341517908,1730947532137,-687.67,0.00022191,2]
[341517909,1730947532161,-506.95850037,0.00022191,2]
[341517910,1730947532185,-500.0,0.00022191,2]
[341517911,1730947532210,-500.0,0.00022191,2]
[341517912,1730947532239,-500.0,0.00022191,2]
[341517913,1730947532266,-1402.37,0.00022191,2]
[341517914,1730947532291,-500.0,0.00022191,2]
[341517915,1730947532316,-500.0,0.00022191,2]
[341517916,1730947532343,-500.0,0.00022191,2]
[341517917,1730947532371,-820.85,0.00022191,2]
[341517918,1730947532395,-500.0,0.00022191,2]
[341517919,1730947532420,-500.0,0.00022191,2]
[341517920,1730947532443,-500.0,0.00022465,2]
[341517921,1730947532466,-500.0,0.00022465,2]
[341517922,1730947532490,-500.0,0.00022465,2]
[341517923,1730947532513,-500.0,0.00022465,2]
[341517924,1730947532537,-500.0,0.00022465,2]
[341517925,1730947532563,-500.0,0.00022465,2]
[341517926,1730947532588,-500.0,0.00022465,2]
[341517927,1730947532615,-500.0,0.00022465,2]
[341517928,1730947532640,-500.0,0.00022465,2]
[341517929,1730947532664,-500.0,0.00022465,2]
[341517930,1730947532690,-1638.27,0.00022465,2]
[341517931,1730947532714,-500.0,0.00022465,2]
[341517932,1730947532740,-500.0,0.00022465,2]
[341517933,1730947532767,-715.07,0.00022465,2]
[341517934,1730947532791,-500.0,0.00022465,2]
[341517935,1730947532816,-687.67,0.00022465,2]
[341517936,1730947532840,-500.0,0.00022465,2]
[341517937,1730947532865,-500.0,0.00022465,2]
[341517938,1730947532894,-1402.37,0.00022465,2]
[341517939,1730947532920,-500.0,0.00022465,2]
[341517940,1730947532946,-820.85,0.00022465,2]
[341517941,1730947532971,-500.0,0.00022465,2]
[341517942,1730947532995,-500.0,0.00022465,2]
[341517943,1730947533019,-500.0,0.00022739,2]
[341517944,1730947533044,-500.0,0.00022739,2]
[341517945,1730947533067,-500.0,0.00022739,2]
[341517946,1730947533091,-500.0,0.00022739,2]
[341517947,1730947533117,-611.77618077,0.00022739,2]
[341517948,1730947533144,-500.0,0.00022739,2]
[341517949,1730947533170,-500.0,0.00022739,2]
[341517950,1730947533198,-500.0,0.00022739,2]
[341517951,1730947533226,-500.0,0.00022739,2]
[341517952,1730947533251,-500.0,0.00022739,2]
[341517953,1730947533279,-1638.27,0.00022739,2]
[341517954,1730947533305,-500.0,0.00022739,2]
[341517955,1730947533329,-500.0,0.00022739,2]
[341517956,1730947533357,-715.07,0.00022739,2]
[341517957,1730947533383,-687.67,0.00022739,2]
[341517958,1730947533408,-500.0,0.00022739,2]
[341517959,1730947533433,-500.0,0.00022739,2]
[341517960,1730947533461,-1402.37,0.00022739,2]
[341517961,1730947533487,-500.0,0.00022739,2]
[341517962,1730947533520,-820.85,0.00022739,2]
[341517963,1730947533547,-500.0,0.00022739,2]
[341517964,1730947533573,-500.0,0.00022739,2]
[341517965,1730947533598,-159.808,0.0002288,14]
[341517966,1730947533631,-512.39239089,0.00023013,2]
[341517967,1730947533656,-500.0,0.00023013,2]
[341517968,1730947533682,-500.0,0.00023013,2]
[341517969,1730947533706,-508.76060272,0.00023013,2]
[341517970,1730947533732,-500.0,0.00023013,2]
[341517971,1730947533759,-500.0,0.00023013,2]
[341517972,1730947533790,-500.0,0.00023013,2]
[341517973,1730947533815,-417.84273314,0.00023013,2]
[341517974,1730947533841,-500.0,0.00023013,2]
[341517975,1730947533870,-1638.27,0.00023013,2]
[341517976,1730947533896,-500.0,0.00023013,2]
[341517977,1730947533922,-524.47256561,0.00023013,2]
[341517978,1730947533949,-715.07,0.00023013,2]
[341517979,1730947533978,-687.67,0.00023013,2]
[341517980,1730947534005,-500.0,0.00023013,2]
[341517981,1730947534125,-500.0,0.00023013,2]
[341517982,1730947534154,-1402.37,0.00023013,2]
[341517983,1730947534179,-500.0,0.00023013,2]
[341517984,1730947534205,-820.85,0.00023013,2]
[341517985,1730947534240,-395.57929321,0.00023013,2]
[341517986,1730947534267,-500.0,0.00023013,2]
[341517987,1730947534291,-168.405798,0.000232,2]
[341517988,1730947534319,-500.0,0.00023287,2]
[341517989,1730947534343,-500.0,0.00023287,2]
[341517990,1730947534369,-500.0,0.00023287,2]
[341517991,1730947534395,-500.0,0.00023287,2]
[341517992,1730947534421,-500.0,0.00023287,2]
[341517993,1730947534446,-500.0,0.00023287,2]
[341517994,1730947534471,-1638.27,0.00023287,2]
[341517995,1730947534495,-500.0,0.00023287,2]
[341517996,1730947534522,-715.07,0.00023287,2]
[341517997,1730947534547,-687.67,0.00023287,2]
[341517998,1730947534572,-500.0,0.00023287,2]
[341517999,1730947534597,-500.0,0.00023287,2]
[341518000,1730947534626,-1402.37,0.00023287,2]
[341518001,1730947534652,-500.0,0.00023287,2]
[341518002,1730947534678,-820.85,0.00023287,2]
[341518003,1730947534702,-500.0,0.00023287,2]
[341518004,1730947534726,-1000.0,0.00023342,2]
[341518005,1730947534755,-1000.0,0.00023542,2]
[341518006,1730947534779,-1000.0,0.00023542,2]
[341518007,1730947534803,-500.0,0.00023561,2]
[341518008,1730947534826,-500.0,0.00023561,2]
[341518009,1730947534851,-500.0,0.00023561,2]
[341518010,1730947534878,-500.0,0.00023561,2]
[341518011,1730947534906,-500.0,0.00023561,2]
[341518012,1730947534930,-500.0,0.00023561,2]
[341518013,1730947534956,-1638.27,0.00023561,2]
[341518014,1730947534980,-500.0,0.00023561,2]
[341518015,1730947535005,-715.07,0.00023561,2]
[341518016,1730947535030,-687.67,0.00023561,2]
[341518017,1730947535055,-500.0,0.00023561,2]
[341518018,1730947535078,-500.0,0.00023561,2]
[341518019,1730947535106,-1402.37,0.00023561,2]
[341518020,1730947535130,-500.0,0.00023561,2]
[341518021,1730947535156,-820.85,0.00023561,2]
[341518022,1730947535180,-500.0,0.00023561,2]
[341518023,1730947535204,-159.805,0.0002362,7]
[341518024,1730947535235,-420.0,0.00023817,2]
[341518025,1730947535259,-500.0,0.00023835,2]
[341518026,1730947535283,-500.0,0.00023835,2]
[341518027,1730947535309,-500.0,0.00023835,2]
[341518028,1730947535334,-500.0,0.00023835,2]
[341518029,1730947535361,-500.0,0.00023835,2]
[341518030,1730947535385,-500.0,0.00023835,2]
[341518031,1730947535411,-1638.27,0.00023835,2]
[341518032,1730947535435,-500.0,0.00023835,2]
[341518033,1730947535463,-715.07,0.00023835,2]
[341518034,1730947535490,-687.67,0.00023835,2]
[341518035,1730947535518,-500.0,0.00023835,2]
[341518036,1730947535543,-500.0,0.00023835,2]
[341518037,1730947535571,-1402.37,0.00023835,2]
[341518038,1730947535598,-500.0,0.00023835,2]
[341518039,1730947535626,-820.85,0.00023835,2]
[341518040,1730947535651,-500.0,0.00023835,2]
[341518041,1730947535676,-500.0,0.00024094,2]
[341518042,1730947535702,-500.0,0.00024094,2]
[341518043,1730947535727,-420.0,0.00024108,2]
[341518044,1730947535753,-500.0,0.00024109,2]
[341518045,1730947535778,-500.0,0.00024109,2]
[341518046,1730947535802,-500.0,0.00024109,2]
[341518047,1730947535828,-500.0,0.00024109,2]
[341518048,1730947535855,-500.0,0.00024109,2]
[341518049,1730947535879,-500.0,0.00024109,2]
[341518050,1730947535905,-1638.27,0.00024109,2]
[341518051,1730947535931,-500.0,0.00024109,2]
[341518052,1730947535957,-715.07,0.00024109,2]
[341518053,1730947535984,-687.67,0.00024109,2]
[341518054,1730947536010,-500.0,0.00024109,2]
[341518055,1730947536035,-500.0,0.00024109,2]
[341518056,1730947536062,-1402.37,0.00024109,2]
[341518057,1730947536087,-500.0,0.00024109,2]
[341518058,1730947536115,-820.85,0.00024109,2]
[341518059,1730947536141,-500.0,0.00024109,2]
[341518060,1730947536166,-159.857,0.0002436,14]
[341518061,1730947536190,-580.3,0.00024383,2]
[341518062,1730947536215,-500.0,0.00024383,2]
[341518063,1730947536244,-500.0,0.00024383,2]
[341518064,1730947536268,-500.0,0.00024383,2]
[341518065,1730947536295,-500.0,0.00024383,2]
[341518066,1730947536321,-375.3372002,0.00024383,2]
[341518067,1730947536348,-1638.27,0.00024383,2]
[341518068,1730947536374,-500.0,0.00024383,2]
[341518069,1730947536400,-715.07,0.00024383,2]
[341518070,1730947536516,-687.67,0.00024383,2]
[341518071,1730947536543,-500.0,0.00024383,2]
[341518072,1730947536569,-500.0,0.00024383,2]
[341518073,1730947536596,-1402.37,0.00024383,2]
[341518074,1730947536623,-500.0,0.00024383,2]
[341518075,1730947536649,-820.85,0.00024383,2]
[341518076,1730947536676,-500.0,0.00024383,2]
[341518077,1730947536773,177.43824901,0.00022191,2]
[341518078,1730947541216,500.0,0.00021917,2]
[341518079,1730947541526,184.65821847,0.00022191,2]
[341518080,1730947554530,1169.27083333,0.00021264,2]
[341518081,1730947555226,500.0,0.00021917,2]
[341518082,1730947555496,226.1767415,0.00022191,2]
[341518083,1730947558293,293.82638945,0.00021917,2]
[341518103,1730947678578,1169.27083333,0.0002083,2]
[341518109,1730947831638,163.258357,0.00013973,2]
[341518142,1730947833193,-300.0,0.00021916,2]
[341518143,1730947833203,-103.453207,0.00021916,2]
[341518199,1730947839337,-196.546793,0.00021916,2]
[341518200,1730947839346,-206.17361055,0.00021917,2]
[341518201,1730947839357,-500.0,0.00021917,2]
[341518202,1730947839366,-480.00841645,0.00021917,2]
[341518203,1730947839507,-19.99158355,0.00021917,2]
[341518204,1730947839516,-562.42595484,0.00021917,2]
[341518210,1730947841743,-255.62404516,0.00021917,2]
[341518211,1730947841754,-500.0,0.00021917,2]
[341518212,1730947841763,-262.09596311,0.00021917,2]
[341518234,1730947848624,-352.06952366,0.00021917,2]
[341518235,1730947848634,-504.20578161,0.00021917,2]
[341518236,1730947848643,-3124.97,0.00021917,2]
[341518237,1730947848653,-955.66,0.00021917,2]
[341518238,1730947848663,-500.0,0.00021917,2]
[341518239,1730947848672,-500.0,0.00021917,2]
[341518240,1730947848682,-500.0,0.00021917,2]
[341518241,1730947848691,-232.12420872,0.00021917,2]
[341518242,1730947848700,-500.0,0.00021917,2]
[341518243,1730947848710,-500.0,0.00021917,2]
[341518244,1730947848720,-500.0,0.00021917,2]
[341518245,1730947848729,-502.64840037,0.00021917,2]
[341518246,1730947848739,-500.0,0.00021917,2]
[341518247,1730947848748,-500.0,0.00021917,2]
[341518248,1730947848758,-500.0,0.00021917,2]
[341518249,1730947848767,-500.0,0.00021917,2]
[341518250,1730947848777,-470.91709797,0.00021917,2]
[341518251,1730947848786,-544.73117031,0.00021917,2]
[341518252,1730947848797,-500.0,0.00022191,2]
[341518253,1730947848806,-500.0,0.00022191,2]
[341518254,1730947848816,-500.0,0.00022191,2]
[341518255,1730947848825,-818.05,0.00022191,2]
[341518256,1730947848834,-257.17107116,0.00022191,2]
[341518257,1730947848844,-955.66,0.00022191,2]
[341518258,1730947848853,-3124.97,0.00022191,2]
[341518259,1730947848863,-500.0,0.00022191,2]
[341518260,1730947848872,-500.0,0.00022191,2]
[341518261,1730947848881,-559.90187116,0.00022191,2]
[341518262,1730947848891,-500.0,0.00022191,2]
[341518263,1730947848900,-303.01598713,0.00022191,2]
[341518264,1730947848909,-500.0,0.00022191,2]
[341518265,1730947848918,-500.0,0.00022191,2]
[341518266,1730947848927,-3191.11931281,0.00022365,2]
[341518267,1730947848937,-500.0,0.00022465,2]
[341518268,1730947848946,-276.1,0.00022465,2]
[341518269,1730947848955,-500.0,0.00022465,2]
[341518270,1730947848964,-818.05,0.00022465,2]
[341518271,1730947848973,-955.66,0.00022465,2]
[341518272,1730947848982,-3124.97,0.00022465,2]
[341518273,1730947848992,-500.0,0.00022465,2]
[341518274,1730947849001,-500.0,0.00022465,2]
[341518275,1730947849010,-500.0,0.00022465,2]
[341518276,1730947849020,-500.0,0.00022465,2]
[341518277,1730947849029,-500.0,0.00022465,2]
[341518278,1730947849039,-500.0,0.00022739,2]
[341518279,1730947849048,-500.0,0.00022739,2]
[341518280,1730947849057,-818.05,0.00022739,2]
[341518281,1730947849066,-955.66,0.00022739,2]
[341518282,1730947849076,-3124.97,0.00022739,2]
[341518283,1730947849085,-500.0,0.00022739,2]
[341518284,1730947849094,-618.07,0.00022739,2]
[341518285,1730947849103,-500.0,0.00022739,2]
[341518286,1730947849116,-500.0,0.00022739,2]
[341518287,1730947849126,-500.0,0.00022739,2]
[341518288,1730947849135,-269.35212497,0.00023012,2]
[341518289,1730947849144,-178.91463584,0.00023012,2]